bitfinex/quotes_BTCUSD_20230405
["timestamp","ask_amount","ask_price","bid_price","bid_amount"]
[1680662645215,0.1469,28580.0,28578.0,0.00018]
[1680662645485,0.1469,28580.0,28577.0,0.34386773]
[1680662645698,0.1469,28580.0,28579.0,0.33370931]
[1680662647446,0.1469,28580.0,28578.0,0.00018]
[1680662647685,0.1469,28580.0,28577.0,0.001]
[1680662647686,0.180954,28579.0,28577.0,0.001]
[1680662647900,0.034033,28578.0,28577.0,0.001]
[1680662648117,0.134033,28578.0,28577.0,0.00118]
[1680662648339,0.1,28578.0,28577.0,0.00118]
[1680662649002,0.45471056,28578.0,28577.0,0.00106]
[1680662649231,0.79988256,28578.0,28577.0,0.001]
[1680662649450,0.84950022,28578.0,28577.0,0.001]
[1680662649888,0.79988256,28578.0,28577.0,0.001]
[1680662650107,0.84100528,28578.0,28577.0,0.001]
[1680662650323,0.79988256,28578.0,28577.0,0.001]
[1680662650571,0.79988256,28578.0,28570.0,0.0566219]
[1680662650572,0.1466,28575.0,28571.0,0.00018]
[1680662650800,0.1469,28572.0,28570.0,0.0566219]
[1680662651035,0.38979356,28571.0,28570.0,0.0568019]
[1680662651300,0.43258987,28571.0,28570.0,0.0568019]
[1680662651523,0.73258987,28571.0,28570.0,0.0566219]
[1680662652443,0.74108987,28571.0,28570.0,0.0566219]
[1680662652864,0.73258987,28571.0,28570.0,0.0566219]
[1680662653971,0.74108987,28571.0,28570.0,0.0566219]
[1680662655675,0.74108987,28571.0,28570.0,0.05651492]
[1680662656030,0.335083,28571.0,28570.0,0.46242572]
[1680662656234,0.65522056,28571.0,28570.0,0.05651492]
[1680662656433,0.74069141,28571.0,28570.0,0.05651492]
[1680662658534,0.38598085,28571.0,28570.0,0.05651492]
[1680662658731,0.35056285,28571.0,28570.0,0.05651492]
[1680662658937,0.14741,28572.0,28570.0,0.05651492]
[1680662659184,0.07261455,28571.0,28570.0,0.05651492]
[1680662659339,0.37261455,28571.0,28570.0,0.05651492]
[1680662660541,0.3,28571.0,28570.0,0.10630311]
[1680662660758,0.3,28571.0,28570.0,0.05651492]
[1680662660993,0.3,28571.0,28570.0,0.42614723]
[1680662661217,0.00051,28572.0,28570.0,0.46850766]
[1680662661444,0.44628,28574.0,28570.0,0.46850766]
[1680662661665,0.3,28573.0,28571.0,0.04685077]
[1680662661886,0.30051,28576.0,28571.0,0.04685077]
[1680662661887,0.04572376,28575.0,28571.0,0.39079836]
[1680662662107,0.04521376,28575.0,28571.0,0.39085836]
[1680662662343,0.3,28576.0,28571.0,0.39085836]
[1680662662550,0.3,28576.0,28571.0,0.43432933]
[1680662663001,0.34650223,28576.0,28571.0,0.39085836]
[1680662663210,0.34650223,28576.0,28572.0,0.04473733]
[1680662663424,0.05204918,28575.0,28572.0,0.04491733]
[1680662664512,0.05204918,28575.0,28572.0,0.00018]
[1680662664721,0.05204918,28575.0,28572.0,0.00012]
[1680662666920,0.50161056,28574.0,28572.0,0.00012]
[1680662667135,0.50161056,28574.0,28571.0,6e-05]
[1680662667136,0.41638,28573.0,28571.0,0.00018]
[1680662667353,0.036247,28572.0,28571.0,0.00018]
[1680662668434,0.39095756,28572.0,28571.0,0.00018]
[1680662668645,0.69095756,28572.0,28571.0,0.00018]
[1680662669543,0.90013094,28572.0,28570.0,0.05669492]
[1680662669771,0.77133556,28571.0,28570.0,0.05669492]
[1680662672271,0.80900292,28571.0,28570.0,0.05669492]
[1680662673106,0.77133556,28571.0,28570.0,0.05669492]
[1680662673311,0.3817,28571.0,28570.0,0.41740551]
[1680662673518,0.0817,28571.0,28570.0,0.41740551]
[1680662673729,0.3,28572.0,28570.0,0.41740551]
[1680662673938,0.04617473,28573.0,28570.0,0.41740551]
[1680662674355,0.033997,28571.0,28570.0,0.41722551]
[1680662674569,0.333997,28571.0,28570.0,0.05669492]
[1680662674984,0.3,28571.0,28570.0,0.05669492]
[1680662675607,0.035991,28571.0,28570.0,0.05651492]
[1680662676027,0.04853776,28572.0,28570.0,0.05651492]
[1680662676230,0.04853776,28572.0,28570.0,0.05669492]
[1680662676410,0.035974,28571.0,28570.0,0.05669492]
[1680662677023,0.04853776,28572.0,28570.0,0.05669492]
[1680662677235,0.04853776,28572.0,28570.0,0.50328809]
[1680662677640,0.035691,28571.0,28570.0,0.50328809]
[1680662677849,0.036855,28573.0,28571.0,0.35750681]
[1680662678053,0.035453,28572.0,28571.0,0.35768681]
[1680662678261,0.335453,28572.0,28571.0,0.35768681]
[1680662678911,0.335453,28572.0,28571.0,0.00018]
[1680662679128,0.18616247,28571.0,28568.0,0.00018]
[1680662679338,0.18616247,28571.0,28567.0,0.40163122]
[1680662679339,0.03609,28569.0,28567.0,0.40163122]
[1680662679553,0.3,28570.0,28567.0,0.02138]
[1680662679761,0.3,28570.0,28567.0,0.47485619]
[1680662679762,0.035282,28568.0,28567.0,0.47485619]
[1680662679970,0.46235117,28570.0,28567.0,0.47503619]
[1680662680184,0.034146,28568.0,28567.0,0.02138]
[1680662680393,0.034146,28568.0,28567.0,0.0212]
[1680662680600,0.13823321,28569.0,28567.0,0.0212]
[1680662681656,0.35471056,28569.0,28567.0,0.0212]
[1680662681866,0.86040256,28568.0,28567.0,0.0212]
[1680662682077,1.01371909,28568.0,28567.0,0.0212]
[1680662682695,0.65101853,28568.0,28567.0,0.0212]
[1680662683338,1.00572909,28568.0,28567.0,0.0212]
[1680662683547,1.01422909,28568.0,28567.0,0.0212]
[1680662683757,1.12907261,28568.0,28567.0,0.0212]
[1680662683977,1.01371909,28568.0,28567.0,0.0212]
[1680662684182,1.01422909,28568.0,28567.0,0.0212]
[1680662685715,0.93272909,28568.0,28567.0,0.0212]
[1680662686371,0.92422909,28568.0,28567.0,0.0212]
[1680662686548,0.56951853,28568.0,28567.0,0.0212]
[1680662688076,0.92422909,28568.0,28567.0,0.0212]
[1680662688296,0.416202,28568.0,28567.0,0.0212]
[1680662688507,0.035102,28568.0,28567.0,0.42805397]
[1680662688718,0.00051,28570.0,28567.0,0.42805397]
[1680662688950,0.4109,28574.0,28568.0,0.04306795]
[1680662688951,0.00051,28571.0,28568.0,0.04306795]
[1680662689166,0.0817,28576.0,28569.0,0.17501]
[1680662689167,0.14453503,28575.0,28569.0,0.17501]
[1680662689375,0.14504503,28575.0,28570.0,0.04347097]
[1680662689671,0.20763357,28574.0,28570.0,0.06962586]
[1680662689879,0.17410757,28574.0,28570.0,0.02615489]
[1680662690187,0.00051,28574.0,28570.0,0.02615489]
[1680662690407,0.26238312,28576.0,28571.0,0.41259316]
[1680662690608,0.333878,28575.0,28571.0,0.51743993]
[1680662690823,0.4354436,28575.0,28571.0,0.47396896]
[1680662691240,0.035502,28574.0,28571.0,0.47396896]
[1680662691451,0.036012,28574.0,28571.0,0.47396896]
[1680662691663,0.00051,28574.0,28571.0,0.47396896]
[1680662692081,0.00051,28574.0,28572.0,0.05001239]
[1680662692294,0.034753,28573.0,28571.0,0.41259316]
[1680662692520,0.15982774,28573.0,28569.0,0.00018]
[1680662692739,0.15982774,28573.0,28568.0,0.04306795]
[1680662692740,0.73813511,28573.0,28568.0,0.41380717]
[1680662692961,0.0817,28571.0,28569.0,0.32683879]
[1680662693373,0.0817,28571.0,28570.0,0.43029401]
[1680662694442,0.0817,28571.0,28569.0,0.00018]
[1680662694650,0.0817,28571.0,28569.0,0.42023504]
[1680662694880,0.0817,28571.0,28570.0,0.36099113]
[1680662695299,0.0817,28571.0,28569.0,0.01066918]
[1680662695512,0.0817,28571.0,28567.0,0.10471184]
[1680662695714,0.0817,28571.0,28568.0,0.45797379]
[1680662695940,0.0817,28571.0,28569.0,0.3533522]
[1680662696166,0.036432,28570.0,28569.0,0.3533522]
[1680662696451,0.0817,28571.0,28569.0,0.3533522]
[1680662696657,0.03235,28570.0,28568.0,0.00018]
[1680662696798,0.035535,28569.0,28567.0,0.36997216]
[1680662697004,0.24955385,28571.0,28567.0,0.48892997]
[1680662697005,0.03372,28570.0,28567.0,0.48892997]
[1680662697225,0.03372,28570.0,28568.0,0.36635624]
[1680662697427,0.033172,28569.0,28568.0,0.00018]
[1680662697661,0.033172,28569.0,28567.0,0.02138]
[1680662697810,0.03328,28570.0,28568.0,0.33993647]
[1680662698009,0.033782,28569.0,28568.0,0.34011647]
[1680662698895,0.033782,28569.0,28568.0,0.00018]
[1680662699111,0.033782,28569.0,28567.0,0.0212]
[1680662699112,0.13898598,28568.0,28567.0,0.0212]
[1680662699324,0.33492398,28568.0,28567.0,0.0212]
[1680662699533,0.60813454,28568.0,28567.0,0.0212]
[1680662699779,0.95012694,28568.0,28567.0,0.0212]
[1680662699983,0.90813454,28568.0,28567.0,0.0212]
[1680662700619,0.90864454,28568.0,28567.0,0.0212]
[1680662701060,0.91714454,28568.0,28567.0,0.0212]
[1680662701272,0.90813454,28568.0,28567.0,0.0212]
[1680662701905,1.00245218,28568.0,28567.0,0.0212]
[1680662702114,0.90813454,28568.0,28567.0,0.0212]
[1680662702352,0.90813454,28568.0,28567.0,0.02109762]
[1680662702353,0.85934856,28568.0,28567.0,0.02109762]
[1680662702991,0.85985856,28568.0,28567.0,0.02109762]
[1680662703635,0.99147139,28568.0,28567.0,0.02109762]
[1680662703853,0.85985856,28568.0,28567.0,0.02109762]
[1680662704076,0.99555857,28568.0,28567.0,0.02109762]
[1680662704499,0.85985856,28568.0,28567.0,0.02109762]
[1680662704710,1.03273247,28568.0,28567.0,0.02109762]
[1680662705430,1.02423247,28568.0,28567.0,0.02109762]
[1680662705643,0.033248,28568.0,28567.0,0.38026823]
[1680662705858,0.08191,28569.0,28567.0,0.38026823]
[1680662706027,0.03463,28568.0,28567.0,0.38026823]
[1680662706443,0.21639901,28569.0,28567.0,0.38026823]
[1680662706444,0.21639901,28569.0,28567.0,0.42069561]
[1680662706648,0.21588901,28569.0,28567.0,0.42069561]
[1680662707252,0.3,28568.0,28567.0,0.42069561]
[1680662707423,0.3,28568.0,28567.0,0.38044823]
[1680662710027,0.08191,28569.0,28567.0,0.38044823]
[1680662710241,0.3817,28570.0,28567.0,0.38026823]
[1680662710456,0.38221,28570.0,28567.0,0.38026823]
[1680662710871,0.38221,28570.0,28568.0,0.37316517]
[1680662711080,0.38221,28570.0,28568.0,0.412872]
[1680662713725,0.00051,28571.0,28569.0,0.36615471]
[1680662713934,0.0821,28576.0,28570.0,0.024316]
[1680662713935,0.00051,28575.0,28570.0,0.024316]
[1680662714101,0.14490978,28576.0,28571.0,0.13315819]
[1680662714310,0.15775516,28575.0,28571.0,0.13315819]
[1680662714893,0.15775516,28575.0,28571.0,0.08968722]
[1680662715816,0.15775516,28575.0,28572.0,0.17499]
[1680662716035,0.00051,28576.0,28573.0,0.06368878]
[1680662716258,0.0811,28577.0,28573.0,0.06368878]
[1680662716680,0.0811,28577.0,28573.0,0.48041452]
[1680662716884,0.15174615,28578.0,28574.0,0.40745056]
[1680662716885,0.00739443,28578.0,28574.0,0.40745056]
[1680662717114,0.15382686,28581.0,28574.0,0.40745056]
[1680662717115,0.15382686,28581.0,28576.0,0.17497]
[1680662717327,0.15382686,28581.0,28577.0,0.04347097]
[1680662717532,0.16459869,28580.0,28577.0,0.04347097]
[1680662717740,0.16459869,28580.0,28577.0,0.00018]
[1680662717953,0.16459869,28580.0,28576.0,0.17497]
[1680662717954,0.16459869,28580.0,28578.0,0.017515]
[1680662718373,0.08161,28583.0,28578.0,0.37222556]
[1680662718579,0.58301758,28585.0,28579.0,0.34358945]
[1680662718786,0.13257682,28584.0,28580.0,0.04347097]
[1680662718991,0.13257682,28584.0,28581.0,0.03872404]
[1680662719830,0.13257682,28584.0,28582.0,0.017493]
[1680662720042,0.13257682,28584.0,28581.0,0.03872404]
[1680662720480,0.18455833,28582.0,28581.0,0.03872404]
[1680662721103,0.18455833,28582.0,28580.0,0.00018]
[1680662721104,0.18506833,28582.0,28580.0,0.1083195]
[1680662722892,0.18506833,28582.0,28580.0,0.55970425]
[1680662723564,0.18506833,28582.0,28580.0,0.1083195]
[1680662723780,0.18455833,28582.0,28580.0,0.1083195]
[1680662724010,0.18506833,28582.0,28580.0,0.1083195]
[1680662724225,0.18506833,28582.0,28581.0,0.04492887]
[1680662725101,0.18506833,28582.0,28581.0,0.05590574]
[1680662726681,0.18506833,28582.0,28581.0,0.01097687]
[1680662726897,0.30764384,28582.0,28581.0,0.01097687]
[1680662727081,0.30815384,28582.0,28581.0,0.01097687]
[1680662727335,0.60764384,28582.0,28581.0,0.01097687]
[1680662727553,0.30051,28582.0,28581.0,0.01097687]
[1680662727776,0.30051,28582.0,28581.0,0.41324384]
[1680662728468,0.00051,28582.0,28581.0,1.18197278]
[1680662728688,0.33606993,28586.0,28581.0,1.20465078]
[1680662728926,0.30267309,28584.0,28581.0,0.85824375]
[1680662729139,0.30267309,28584.0,28581.0,0.46006222]
[1680662729140,0.30318309,28584.0,28581.0,0.46006222]
[1680662729358,0.30318309,28584.0,28581.0,0.42668585]
[1680662730694,0.30318309,28584.0,28581.0,0.01097687]
[1680662730927,0.30267309,28584.0,28581.0,0.01097687]
[1680662731583,0.0814,28583.0,28581.0,0.01097687]
[1680662731806,0.31233849,28582.0,28581.0,0.01097687]
[1680662732914,0.00051,28582.0,28579.0,0.42682648]
[1680662733107,0.03960174,28582.0,28580.0,0.31048021]
[1680662733539,0.03960174,28582.0,28579.0,0.00018]
[1680662733746,0.03960174,28582.0,28577.0,0.05274]
[1680662733747,0.29805374,28582.0,28577.0,0.31975993]
[1680662733962,0.43995055,28582.0,28578.0,0.32920574]
[1680662734174,0.29856374,28582.0,28579.0,0.38481774]
[1680662734636,0.29856374,28582.0,28579.0,0.42331751]
[1680662735286,0.04011174,28582.0,28579.0,0.42331751]
[1680662735531,0.03960174,28582.0,28580.0,0.17494]
[1680662735747,0.03960174,28582.0,28581.0,0.40796]
[1680662735970,0.03960174,28582.0,28581.0,0.74517656]
[1680662736185,0.03960174,28582.0,28581.0,0.37797656]
[1680662736400,0.03960174,28582.0,28581.0,0.80433619]
[1680662737243,0.03960174,28582.0,28581.0,1.13055127]
[1680662737899,0.03960174,28582.0,28581.0,0.82183019]
[1680662738134,0.03960174,28582.0,28581.0,1.70095555]
[1680662738357,0.03960174,28582.0,28581.0,0.79803656]
[1680662738577,0.03960174,28582.0,28581.0,0.023446]
[1680662738578,0.27974381,28582.0,28581.0,0.023446]
[1680662738819,0.27974381,28582.0,28580.0,0.00012]
[1680662739038,0.00051,28584.0,28579.0,0.41362457]
[1680662739039,0.29815506,28583.0,28579.0,0.41362457]
[1680662739256,0.29815506,28583.0,28579.0,0.41374457]
[1680662739487,0.29866506,28583.0,28579.0,0.41356457]
[1680662739699,0.3,28582.0,28579.0,0.41356457]
[1680662739908,0.33814228,28582.0,28579.0,0.41356457]
[1680662740347,0.33814228,28582.0,28579.0,0.49693303]
[1680662740854,0.56582712,28582.0,28579.0,0.49693303]
[1680662741073,0.56582712,28582.0,28579.0,0.41356457]
[1680662741728,0.56582712,28582.0,28578.0,0.00018]
[1680662741952,0.56582712,28582.0,28577.0,0.39167354]
[1680662741953,0.0815,28581.0,28577.0,0.39167354]
[1680662742169,0.0815,28581.0,28578.0,0.42161551]
[1680662742384,0.0815,28581.0,28577.0,0.48353591]
[1680662742596,0.0765,28581.0,28578.0,0.023783]
[1680662743254,0.0765,28581.0,28579.0,0.00703848]
[1680662743474,0.52768484,28582.0,28579.0,0.72894904]
[1680662743475,0.58460306,28582.0,28579.0,0.72894904]
[1680662743685,0.58460306,28582.0,28580.0,0.0728949]
[1680662744121,0.58460306,28582.0,28577.0,0.49584535]
[1680662744122,0.03528,28581.0,28578.0,0.00018]
[1680662744345,0.30348307,28580.0,28577.0,0.37751398]
[1680662744573,0.30348307,28580.0,28577.0,0.78496454]
[1680662744790,0.30348307,28580.0,28577.0,0.43025398]
[1680662745002,0.30348307,28580.0,28578.0,0.0430254]
[1680662745241,0.0817,28579.0,28576.0,0.00018]
[1680662745464,0.0817,28579.0,28574.0,0.05292]
[1680662745465,0.22359681,28579.0,28574.0,0.05292]
[1680662745679,0.22359681,28579.0,28574.0,0.39475101]
[1680662745939,0.22359681,28579.0,28575.0,0.43331396]
[1680662746149,0.22359681,28579.0,28575.0,0.43349396]
[1680662746150,0.0817,28579.0,28575.0,0.43349396]
[1680662746371,0.0817,28579.0,28575.0,0.38075396]
[1680662746603,0.36213178,28579.0,28575.0,0.38075396]
[1680662747038,0.03429459,28578.0,28575.0,0.38075396]
[1680662747312,0.03429459,28578.0,28575.0,0.00018]
[1680662747313,0.49660737,28577.0,28575.0,0.00018]
[1680662747542,0.1983,28576.0,28570.0,0.00018]
[1680662747766,0.1983,28576.0,28568.0,0.00018]
[1680662747767,0.0817,28572.0,28568.0,0.00018]
[1680662747989,0.0817,28572.0,28567.0,0.02109762]
[1680662747990,0.14189681,28571.0,28570.0,0.35629029]
[1680662748204,0.33395,28571.0,28570.0,0.35629029]
[1680662748451,0.33446,28571.0,28570.0,0.34629029]
[1680662748857,0.30051,28571.0,28570.0,0.34629029]
[1680662749306,0.036853,28571.0,28570.0,0.34629029]
[1680662749519,0.0817,28572.0,28570.0,0.34629029]
[1680662749520,0.08221,28572.0,28570.0,0.34629029]
[1680662749741,0.034197,28571.0,28570.0,0.38093732]
[1680662750169,0.034197,28571.0,28570.0,0.03464703]
[1680662750402,0.31140236,28571.0,28568.0,0.42406041]
[1680662750627,0.3,28570.0,28568.0,0.42406041]
[1680662750852,0.3,28570.0,28567.0,0.02127762]
[1680662750853,0.30051,28570.0,28569.0,0.30474322]
[1680662752378,0.00051,28570.0,28569.0,0.30474322]
[1680662752666,0.30051,28571.0,28569.0,0.30474322]
[1680662752877,0.30051,28571.0,28569.0,0.3373453]
[1680662753111,0.03316345,28570.0,28569.0,0.03260208]
[1680662753344,0.03316345,28570.0,28569.0,0.38731264]
[1680662753569,0.03316345,28570.0,28569.0,1.00636464]
[1680662754007,0.0814,28575.0,28569.0,0.95368464]
[1680662754222,0.32019123,28575.0,28570.0,0.45777067]
[1680662754440,0.32019123,28575.0,28570.0,0.35730821]
[1680662754652,0.32019123,28575.0,28570.0,0.40139918]
[1680662754874,0.3,28574.0,28570.0,0.40139918]
[1680662755090,0.3,28574.0,28570.0,0.35730821]
[1680662755774,0.37818147,28575.0,28571.0,0.36074287]
[1680662755997,0.3,28574.0,28572.0,0.21108229]
[1680662756266,0.3,28574.0,28572.0,0.21126229]
[1680662757122,0.3814,28575.0,28572.0,0.21126229]
[1680662757565,0.70058868,28575.0,28572.0,0.21126229]
[1680662757770,0.70058868,28575.0,28573.0,0.05720052]
[1680662757983,0.70058868,28575.0,28573.0,0.05738052]
[1680662758215,0.3814,28575.0,28573.0,0.05738052]
[1680662758435,0.0814,28575.0,28573.0,0.05738052]
[1680662758652,0.3814,28575.0,28573.0,0.05738052]
[1680662758862,0.3814,28575.0,28574.0,0.06754909]
[1680662759510,0.3814,28575.0,28574.0,0.06760909]
[1680662759734,0.3814,28575.0,28573.0,0.00018]
[1680662759735,0.26025117,28574.0,28573.0,0.00018]
[1680662759917,0.56025117,28574.0,28571.0,0.00012]
[1680662760036,0.26025117,28574.0,28571.0,0.03771569]
[1680662760469,0.26025117,28574.0,28571.0,0.3964378]
[1680662760894,0.26076117,28574.0,28572.0,0.3278128]
[1680662761101,0.00051,28574.0,28572.0,0.3278128]
[1680662761322,0.3814,28575.0,28572.0,0.3278128]
[1680662761323,0.38191,28575.0,28572.0,0.3278128]
[1680662762606,0.6839244,28575.0,28572.0,0.3278128]
[1680662762798,0.6839244,28575.0,28573.0,0.03279928]
[1680662764674,0.38191,28575.0,28573.0,0.37734359]
[1680662764928,0.08191,28575.0,28574.0,0.35460191]
[1680662765804,0.08191,28575.0,28573.0,0.20777928]
[1680662766014,0.38474252,28575.0,28573.0,0.03279928]
[1680662766225,0.56821028,28574.0,28573.0,0.03279928]
[1680662766511,0.26872028,28574.0,28570.0,0.78555629]
[1680662766734,0.41061709,28574.0,28571.0,0.30257127]
[1680662766948,0.26872028,28574.0,28571.0,0.27829927]
[1680662769558,0.0817,28573.0,28571.0,0.27829927]
[1680662769805,0.0817,28573.0,28572.0,0.02784793]
[1680662770907,0.00051,28574.0,28572.0,0.04534693]
[1680662771136,0.0813,28576.0,28573.0,0.023415]
[1680662771353,0.0813,28576.0,28572.0,0.02784793]
[1680662771354,0.08181,28576.0,28574.0,0.37823177]
[1680662771617,0.08181,28576.0,28574.0,0.4910308]
[1680662772045,0.03733292,28575.0,28574.0,0.84574136]
[1680662772238,0.03733292,28575.0,28574.0,0.86879836]
[1680662773593,0.03733292,28575.0,28574.0,0.84574136]
[1680662774018,0.03733292,28575.0,28574.0,0.4910308]
[1680662774417,0.03733292,28575.0,28574.0,0.37823177]
[1680662776412,0.14189681,28569.0,28568.0,0.29760298]
[1680662776658,0.0815,28570.0,28568.0,0.04501556]
[1680662776884,0.0815,28570.0,28567.0,0.42529919]
[1680662777112,0.3815,28570.0,28567.0,0.42529919]
[1680662777334,0.3815,28570.0,28568.0,0.3574465]
[1680662777529,0.38201,28570.0,28568.0,0.3664465]
[1680662779492,0.30051,28570.0,28568.0,0.3664465]
[1680662779708,0.30051,28570.0,28569.0,0.42333734]
[1680662780139,0.00051,28570.0,28569.0,0.42333734]
[1680662780361,0.0817,28571.0,28569.0,0.44634934]
[1680662780571,0.24742048,28573.0,28570.0,0.37887156]
[1680662780572,0.00051,28573.0,28570.0,0.37887156]
[1680662780787,0.26660313,28574.0,28572.0,0.023094]
[1680662781000,0.26660313,28574.0,28571.0,0.12023646]
[1680662781001,0.26711313,28574.0,28571.0,0.66242646]
[1680662781244,0.26711313,28574.0,28573.0,0.023373]
[1680662781487,0.26711313,28574.0,28573.0,0.104051]
[1680662781952,0.56648567,28574.0,28573.0,0.104051]
[1680662782612,0.56648567,28574.0,28573.0,0.112451]
[1680662782832,0.3,28574.0,28573.0,0.112451]
[1680662783046,0.03736804,28574.0,28573.0,0.112451]
[1680662783261,0.03736804,28574.0,28573.0,0.49860457]
[1680662784570,0.03736804,28574.0,28573.0,0.49866457]
[1680662784783,0.03736804,28574.0,28573.0,0.49878457]
[1680662786372,0.03736804,28574.0,28573.0,0.00858]
[1680662786590,0.03736804,28574.0,28573.0,0.0084]
[1680662787524,0.13736804,28574.0,28573.0,0.0084]
[1680662787744,0.43736804,28574.0,28573.0,0.0084]
[1680662788623,0.73923646,28574.0,28573.0,0.0084]
[1680662789530,0.82073646,28574.0,28573.0,0.0084]
[1680662790384,1.02173646,28574.0,28573.0,0.0084]
[1680662791691,1.05766046,28574.0,28573.0,0.0084]
[1680662792232,1.02173646,28574.0,28573.0,0.0084]
[1680662792516,1.4962771,28574.0,28570.0,0.08369184]
[1680662793035,0.081,28571.0,28570.0,0.08369184]
[1680662793551,0.081,28571.0,28570.0,0.34084864]
[1680662793554,0.0812,28572.0,28570.0,0.34934864]
[1680662794908,0.0812,28572.0,28571.0,0.08351184]
[1680662795140,0.0812,28572.0,28571.0,0.48162486]
[1680662795361,0.0812,28572.0,28571.0,0.65925486]
[1680662795581,0.20151,28574.0,28571.0,1.0912464]
[1680662795797,0.20151,28574.0,28573.0,0.023339]
[1680662795798,0.201,28574.0,28573.0,0.023339]
[1680662796012,0.201,28574.0,28573.0,0.61724802]
[1680662796220,0.201,28574.0,28573.0,0.61742802]
[1680662797740,0.201,28574.0,28573.0,0.63492702]
[1680662798165,0.201,28574.0,28573.0,1.03277536]
[1680662800371,0.201,28574.0,28573.0,0.6780648]
[1680662800599,0.201,28574.0,28573.0,0.74736547]
[1680662800816,0.201,28574.0,28573.0,0.77152547]
[1680662801248,0.201,28574.0,28573.0,0.64574105]
[1680662801471,0.201,28574.0,28571.0,0.08384718]
[1680662801472,0.77930737,28574.0,28571.0,0.08384718]
[1680662801691,0.199248,28572.0,28569.0,0.00018]
[1680662801917,0.034819,28570.0,28567.0,0.02109762]
[1680662802134,0.1634,28568.0,28567.0,0.02109762]
[1680662802346,0.33978081,28568.0,28567.0,0.02109762]
[1680662802590,0.497884,28568.0,28567.0,0.02109762]
[1680662802799,0.498394,28568.0,28567.0,0.02109762]
[1680662803015,0.53139658,28568.0,28567.0,0.02109762]
[1680662803224,0.77522316,28568.0,28567.0,0.02109762]
[1680662803913,0.69352316,28568.0,28567.0,0.02109762]
[1680662805728,0.44969658,28568.0,28567.0,0.02109762]
[1680662805944,0.03351258,28568.0,28567.0,0.45370462]
[1680662806154,0.03300258,28568.0,28567.0,0.45370462]
[1680662806621,0.03351258,28568.0,28567.0,0.45370462]
[1680662807054,0.03300258,28568.0,28567.0,0.02109762]
[1680662807276,0.23134558,28568.0,28567.0,0.02109762]
[1680662807491,0.4996085,28568.0,28567.0,0.02109762]
[1680662807714,0.81309118,28568.0,28567.0,0.02109762]
[1680662808180,0.81360118,28568.0,28567.0,0.02109762]
[1680662808882,1.17681174,28568.0,28567.0,0.02109762]
[1680662809527,0.81360118,28568.0,28567.0,0.02109762]
[1680662811728,1.17681174,28568.0,28567.0,0.02109762]
[1680662812354,1.01274731,28568.0,28567.0,0.02109762]
[1680662812566,1.12399902,28568.0,28567.0,0.02109762]
[1680662813014,0.89506614,28568.0,28567.0,0.02109762]
[1680662813447,1.21470187,28568.0,28567.0,0.02109762]
[1680662813879,0.1,28567.0,28566.0,1.314e-05]
[1680662814092,1.27028256,28567.0,28566.0,1.314e-05]
[1680662814335,0.96078256,28567.0,28566.0,1.314e-05]
[1680662814552,0.497572,28567.0,28566.0,1.314e-05]
[1680662816567,0.85228256,28567.0,28566.0,1.314e-05]
[1680662816788,0.86078256,28567.0,28566.0,1.314e-05]
[1680662817008,0.96698252,28567.0,28566.0,1.314e-05]
[1680662817230,0.86078256,28567.0,28566.0,1.314e-05]
[1680662818109,0.96078256,28567.0,28566.0,1.314e-05]
[1680662818377,0.96129256,28567.0,28566.0,1.314e-05]
[1680662818600,0.96078256,28567.0,28566.0,1.314e-05]
[1680662818820,0.86078256,28567.0,28566.0,1.314e-05]
[1680662819072,0.416672,28567.0,28566.0,1.314e-05]
[1680662819288,0.0813,28567.0,28566.0,1.314e-05]
[1680662819932,0.0813,28567.0,28564.0,0.00018]
[1680662820158,0.0817,28565.0,28564.0,0.00018]
[1680662820386,0.117685,28565.0,28564.0,0.00018]
[1680662820607,0.0814,28564.0,28562.0,0.00018]
[1680662820822,0.0816,28563.0,28562.0,0.00018]
[1680662821053,0.0816,28563.0,28561.0,0.02128]
[1680662821270,0.0815,28562.0,28561.0,0.02128]
[1680662821835,0.0815,28562.0,28561.0,0.02101893]
[1680662822472,0.0815,28562.0,28561.0,0.4785965]
[1680662822885,0.0815,28562.0,28561.0,0.4927965]
[1680662824567,0.0815,28562.0,28561.0,0.5166495]
[1680662825208,0.0815,28562.0,28561.0,0.4927965]
[1680662825707,0.0815,28562.0,28561.0,0.44772054]
[1680662825848,0.0815,28562.0,28561.0,0.03521893]
[1680662826055,0.00051,28564.0,28561.0,0.88204167]
[1680662826281,0.00051,28566.0,28563.0,0.023941]
[1680662826511,0.00051,28566.0,28564.0,0.03786516]
[1680662826512,0.32435265,28566.0,28564.0,0.03786516]
[1680662826748,0.32435265,28566.0,28564.0,0.0139]
[1680662826749,0.53407555,28565.0,28564.0,0.0139]
[1680662826963,0.29802931,28562.0,28561.0,0.02101893]
[1680662827174,0.37972931,28562.0,28561.0,0.02101893]
[1680662827385,0.41337131,28562.0,28561.0,0.02101893]
[1680662827600,0.37972931,28562.0,28561.0,0.02101893]
[1680662828017,0.41389246,28562.0,28561.0,0.02101893]
[1680662828473,0.41389246,28562.0,28561.0,0.0626298]
[1680662828904,0.41389246,28562.0,28561.0,0.02101893]
[1680662829978,0.11586315,28562.0,28561.0,0.02101893]
[1680662830191,0.51416683,28562.0,28561.0,0.02101893]
[1680662830414,0.54987283,28562.0,28561.0,0.02101893]
[1680662831099,0.23316915,28562.0,28561.0,0.02101893]
[1680662831330,0.53956149,28562.0,28561.0,0.02101893]
[1680662833902,0.50539834,28562.0,28561.0,0.02101893]
[1680662834117,0.85422656,28562.0,28561.0,0.02101893]
[1680662834350,1.12119754,28562.0,28561.0,0.02101893]
[1680662835033,0.86272656,28562.0,28561.0,0.02101893]
[1680662835251,1.17382656,28562.0,28561.0,0.02101893]
[1680662835893,1.30653057,28562.0,28561.0,0.01772153]
[1680662836113,1.49369063,28562.0,28561.0,1.53e-06]
[1680662836348,0.3672,28560.0,28555.0,0.0211]
[1680662836576,0.3095,28561.0,28555.0,0.0211]
[1680662836577,1.19521056,28556.0,28555.0,0.0211]
[1680662836796,1.37076737,28556.0,28555.0,0.0211]
[1680662837016,1.53737056,28556.0,28555.0,0.0211]
[1680662837242,0.72088688,28561.0,28555.0,0.0211]
[1680662837243,0.21483555,28562.0,28555.0,0.81095153]
[1680662837482,0.41606713,28569.0,28558.0,0.80361056]
[1680662837483,0.0003,28561.0,28558.0,0.80361056]
[1680662837720,0.31926863,28570.0,28558.0,0.80361056]
[1680662837721,0.0003,28570.0,28560.0,0.401191]
[1680662837954,0.40369068,28571.0,28566.0,0.17503]
[1680662838169,0.40339068,28571.0,28567.0,0.04409097]